Cogmind - Beta 15 @@@ ROGUE MODE // 2025.05.19 @ 11:38:35 Player: Cess183 Result: Destroyed by G-47 Trooper with Particle Gun Performance ------------- Evolutions (2) 1000 Regions Visited (4) 800 Robots Destroyed (35) 175 Value Destroyed (819) 819 Prototype IDs (13) 260 Alien Tech Used (0) 0 Bonus (83) 83 TOTAL SCORE: 3137 Bonus ------- Follower Combat Kills 130 Friendly Fire -47 Cogmind --------- Core Integrity 0/550 Matter 300/300 Energy 39/100 System Corruption 3% Temperature Cool (39) Movement Core (50) Location -8/Materials Parts ------- > --- POWER (1) -------- (None) > --- PROPULSION (3) --- (None) > --- UTILITY (5) ------ Advanced Visual Processing Unit Advanced Visual Processing Unit > --- WEAPON (2) ------- (None) > --- INVENTORY (5) ---- Improved Signal Interpreter Scrap Shield Fragment (48) Scrap Shield Fragment (47) Peak State ------------ > --- POWER ------------ Subdweller Power Source > --- PROPULSION ------- Light Treads Light Treads Advanced Treads > --- UTILITY ---------- Small Storage Unit Advanced Visual Processing Unit Makeshift Sensor Array Seismic Detector V3-11A's Pendant > --- WEAPON ----------- Subdweller Machine Gun Proton Missile Launcher > --- INVENTORY -------- Subdweller Power Source Light Treads Advanced Visual Processing Unit Proton Missile Launcher Proton Missile Launcher Proton Missile Launcher Scrap Shield Fragment Scrap Shield Fragment [Rating: 30] Favorites ----------- Power Ion Engine Engine Ion Engine Propulsion Light Treads Treads Light Treads Leg Aluminum Leg Utility Small Storage Unit Device V3-11A's Pendant Storage Small Storage Unit Processor Advanced Visual Processing Unit Weapon Grenade Launcher Energy Gun Particle Gun Energy Cannon Heavy Particle Cannon Ballistic Gun Subdweller Machine Gun Launcher Grenade Launcher Special Weapon Mining Laser Impact Weapon Mace Build | -11 -10 -10 -10 -8 ------- Run | Yrd Mat Min Sub Mat Slots Evolved 4 | . . . . 4 Power . | . . . . . Propulsion 1 | . . . . 1 Utility 3 | . . . . 3 Weapon . | . . . . . Parts Attached 35 | 7 2 . 6 20 Power 4 | 1 . . 1 2 Engine 4 | 1 . . 1 2 Core . | . . . . . Reactor . | . . . . . Propulsion 10 | 2 1 . 2 5 Treads 7 | . . . 2 5 Leg 3 | 2 1 . . . Wheel . | . . . . . Hover . | . . . . . Flight . | . . . . . Utility 8 | 2 . . 1 5 Device 4 | 1 . . 1 2 Storage 1 | 1 . . . . Processor 3 | . . . . 3 Hackware . | . . . . . Protection . | . . . . . Artifact . | . . . . . Weapon 13 | 2 1 . 2 8 Energy Gun 2 | 1 . . . 1 Energy Cannon 1 | . . . . 1 Ballistic Gun 2 | 1 . . 1 . Ballistic Cannon . | . . . . . Launcher 6 | . 1 . . 5 Special Weapon 1 | . . . 1 . Impact Weapon 1 | . . . . 1 Slashing Weapon . | . . . . . Piercing Weapon . | . . . . . Special Melee Weapon . | . . . . . Unidentified Prototypes 2 | . . . 1 1 Corrupted Parts 1 | . . . . 1 System Corruption 2 | . . . . 2 Parts Lost 23 | . . . 2 21 Power 2 | . . . . 2 Propulsion 7 | . . . . 7 Utility 6 | . . . . 6 Weapon 8 | . . . 2 6 Highest Loss Streak 8 | . . . 1 8 To Critical Strikes . | . . . . . Average Backups 4 | 2 6 8 5 1 Power . | . 1 1 1 . Propulsion 1 | 1 2 3 1 . Utility 1 | . . 1 1 . Weapon 1 | . 2 3 1 . Tool/Special . | . . . . . Unused Backups 3 | . . . 2 1 Power 1 | . . . 1 . Propulsion . | . . . . . Utility 2 | . . . 1 1 Weapon . | . . . . . Tool/Special . | . . . . . Average Slot Usage (%) 92 | . 100 100 96 80 Engine 12 | . 14 14 14 8 Treads 18 | . . . 24 16 Leg 6 | . 28 28 3 . Device 14 | . 14 14 13 14 Storage 12 | . 14 14 14 8 Processor 4 | . . . . 15 Energy Gun 1 | . 2 . . 3 Ballistic Gun 6 | . 14 14 5 3 Launcher 10 | . 11 14 10 7 Special Weapon 4 | . . . 8 . Peak Build Rating 30 | 7 7 7 11 30 Average Rating 12 | 5 7 7 10 22 On Entrance 6 | . 7 7 7 11 Naked Turns . | . . . . . Heaviest Build 32 | 15 16 16 18 32 Greatest Support 62 | 20 20 20 40 62 Greatest Overweight (x) 8 | 4 . . . 8 Average Overweight (x) . | . . . . . Largest Inventory Capacity 8 | 8 8 8 8 8 Average Capacity 7 | 7 8 8 8 7 Most Carried 8 | 4 8 8 8 8 Average Carried 6 | 2 6 8 7 3 Final Capacity 8 | 8 8 8 8 5 Final Carried 8 | 4 8 8 7 3 Class Distribution -------------------- 100% | Mutant Dominant Class ---------------- Mutant | -10/Materials Mutant | -10/Mines Mutant | -10/Subcaves Mutant | -8/Materials Resources | -11 -10 -10 -10 -8 ----------- Run | Yrd Mat Min Sub Mat Matter Collected 880 | 312 81 . 223 264 Remotely . | . . . . . Salvage Created 1370 | 189 114 . . 1067 Parts 78 | 16 9 . . 53 Haulers Intercepted . | . . . . . Recyclers Shooed 2 | 1 . . . 1 Parts Field Recycled . | . . . . . Retrieved Matter . | . . . . . Parts Self-Destructed 15 | . . . 15 . Prevented . | . . . . . Kills | -11 -10 -10 -10 -8 ------- Run | Yrd Mat Min Sub Mat Combat Hostiles Destroyed 15 | . 3 . . 12 Guns 3 | . 2 . . 1 Cannons 1 | . . . . 1 AOE 4 | . 1 . . 3 Classes Destroyed 10 | 3 2 . . 5 Worker 6 | 2 . . . 4 Builder 4 | . . . . 4 Tunneler 4 | 4 . . . . Recycler 3 | 1 . . . 2 Watcher 3 | . 1 . . 2 Swarmer 1 | . . . . 1 Grunt 9 | . 3 . . 6 Duelist 1 | . . . . 1 Sentry 2 | . . . . 2 Hunter 2 | . . . . 2 Best Kill Streak 9 | 7 3 . . 9 Combat Bots Only 4 | . 3 . . 4 Max Kills in Single Turn 3 | 1 1 . . 3 Gunslinging . | . . . . . Exploded 1 | . 1 . . 1 Melee . | . . . . . Uniques/NPCs Destroyed . | . . . . . Combat | -11 -10 -10 -10 -8 -------- Run | Yrd Mat Min Sub Mat Hostile Shots Fired 246 | . 9 . 69 168 Missed 70 | . 2 . 28 40 Hits 176 | . 7 . 41 128 Melee 7 | . . . . 7 Projectile 169 | . 7 . 41 121 Critical Strikes 9 | . . . . 9 Part Disruptions 1 | . . . . 1 Damage Taken 3066 | . 138 . 489 2439 Core 661 | . 20 . 75 566 Absorbed by Shields 44 | . . . . 44 Core Remaining (%) 81 | 100 . . 62 . Volleys Fired 118 | 14 20 . 52 32 Largest 2 | 2 2 . 2 2 Hottest 100 | 70 50 . 100 78 Shots Fired 152 | 28 23 . 56 45 Gun 68 | 28 20 . 7 13 Cannon 8 | . . . . 8 Launcher 36 | . 3 . 9 24 Special 40 | . . . 40 . Kinetic 48 | 14 20 . 7 7 Thermal 68 | 14 . . 40 14 Explosive 12 | . 3 . 9 . Electromagnetic 24 | . . . . 24 Robot Hit Streak 10 | 10 3 . 3 5 Robot Miss Streak 5 | 3 4 . 5 4 Penetration Max . | . . . . . Secondary Targets . | . . . . . Shots Hit Robots 61 | 19 9 . 7 26 Core Hits 48 | 8 6 . 7 27 Critical Kills . | . . . . . Critical Parts Destroyed . | . . . . . Critical Strikes . | . . . . . Melee Attacks . | . . . . . Impact . | . . . . . Slashing . | . . . . . Piercing . | . . . . . Sneak Attacks . | . . . . . Combat Hostiles . | . . . . . Follow-up Attacks . | . . . . . Damage Inflicted 2536 | 262 178 . 278 1818 Guns 577 | 262 105 . 95 115 Cannons 125 | . . . . 125 Explosions 1800 | . 73 . 157 1570 Melee . | . . . . . Ramming 10 | . . . 2 8 Kinetic 431 | 162 105 . 95 69 Thermal 364 | 100 . . 24 240 Explosive 230 | . 73 . 157 . Electromagnetic 1501 | . . . . 1501 Impact . | . . . . . Slashing . | . . . . . Piercing . | . . . . . Highest Corruption 3 | . 2 2 2 3 Average Corruption 2 | . 2 2 2 2 Corruption Purged . | . . . . . Corruption Blocked . | . . . . . Effects 31 | . . . 25 6 Message Errors 9 | . . . 6 3 Matter Fused 4 | . . . 4 . Heat Flow Errors 4 | . . . 4 . Energy Discharges 6 | . . . 5 1 Parts Fused 1 | . . . 1 . Data Loss (minor) 3 | . . . 2 1 Data Loss (major) 1 | . . . 1 . Misfires 2 | . . . 1 1 Alerts 1 | . . . 1 . Overload Shots . | . . . . . Overflow Damage 27 | . . . . 27 Projectiles . | . . . . . Explosions 27 | . . . . 27 Melee . | . . . . . Knockbacks 1 | . . . . 1 Impact 1 | . . . . 1 Kinetic . | . . . . . Secondary . | . . . . . Self-Inflicted Damage 205 | . 63 . 40 102 Shots 12 | . 2 . 1 9 Rammed 5 | . . . 1 4 Targets Rammed 5 | . . . 1 4 Kicked . | . . . . . Crushed . | . . . . . Highest Temperature 172 | 36 2 . 172 134 Average Temperature 35 | 13 2 . 78 39 Received Heat Transfer 1038 | . 42 . 198 798 Siege Activations . | . . . . . Martial Activations . | . . . . . Shielding Activations . | . . . . . Robots Disrupted . | . . . . . Combat Hostiles . | . . . . . Robots Corrupted 7 | . . . . 7 Combat Hostiles 7 | . . . . 7 Parts Fried 13 | . . . . 13 Impact Corruptions . | . . . . . Robots Melted . | . . . . . Combat Hostiles . | . . . . . Parts Melted . | . . . . . Heat Transferred 842 | 296 . . 50 496 Parts Sabotaged . | . . . . . Parts Stolen . | . . . . . Parts Stripped . | . . . . . Power Chain Reactions 4 | . . . . 4 Alert | -11 -10 -10 -10 -8 ------- Run | Yrd Mat Min Sub Mat Maximum Alert Level . | . . . . . Low Security (%) 100 | 100 100 100 . 100 Level 1 . | . . . . . Level 2 . | . . . . . Level 3 . | . . . . . Level 4 . | . . . . . Level 5 . | . . . . . High Security . | . . . . . Max Security . | . . . . . Peak Influence 151 | 10 113 33 . 151 Initial 46 | . . 33 . 46 Average 36 | 2 18 23 . 51 Influence Increases 882 | 35 134 . 256 457 Destroy 0b10 Robot/C 460 | . 60 . 140 260 Destroy 0b10 Robot/NC 100 | 35 5 . . 60 Destroy Leader 86 | . 12 . . 74 Allied During Kill 13 | . . . 11 2 Disable Machine 60 | . 30 . . 30 Destroy Structure 43 | . 27 . . 16 Partial Spotted 15 | . . . . 15 Lose Combat Pursuer 105 | . . . 105 . Influence Decreases 882 | 35 47 74 180 546 Entered New Map 105 | . . 54 8 43 Time Decay 514 | 35 47 20 92 320 Lost Part 183 | . . . 20 163 Lost Ally 80 | . . . 60 20 Squads Dispatched 4 | . 1 . . 3 Investigation 1 | . . . . 1 Extermination . | . . . . . Reinforcement 3 | . 1 . . 2 Assault . | . . . . . Garrison . | . . . . . Intercept . | . . . . . Searches Triggered . | . . . . . Construction Impeded 1 | . . . . 1 Haulers Reinforced . | . . . . . Active Scanning Responses . | . . . . . Cargo Convoy Interrupts . | . . . . . Stealth | -11 -10 -10 -10 -8 --------- Run | Yrd Mat Min Sub Mat Distress Signals 4 | . . . . 4 Communications Jammed . | . . . . . Distress Signals . | . . . . . Times Spotted 39 | . 5 . 12 22 Peak Tracking Total 8 | . 2 . 6 8 Tactical Retreats 2 | . . . 2 . Traps | -11 -10 -10 -10 -8 ------- Run | Yrd Mat Min Sub Mat Traps Triggered 6 | . 1 . 4 1 Indirectly 1 | . . . . 1 Trap Hack Attempts . | . . . . . Triggered . | . . . . . Disarmed . | . . . . . Reprogrammed . | . . . . . Reused . | . . . . . Traps Extracted . | . . . . . Installed . | . . . . . Triggered . | . . . . . Machines | -11 -10 -10 -10 -8 ---------- Run | Yrd Mat Min Sub Mat Machines Disabled 6 | . 2 . 2 2 Max in Single Turn 2 | . 2 . 1 1 Machines Repaired . | . . . . . Machines Dismantled . | . . . . . Machines Sabotaged . | . . . . . Overloaded Fab Kills . | . . . . . Hacking | -11 -10 -10 -10 -8 --------- Run | Yrd Mat Min Sub Mat Machines Accessed 4 | . 2 . 1 1 Terminals 3 | . 2 . . 1 Fabricators . | . . . . . Repair Stations . | . . . . . Recycling Units . | . . . . . Scanalyzers . | . . . . . Garrison Access . | . . . . . Total Hacks 13 | . 3 . 9 1 Successful 9 | . . . 9 . Failed 4 | . 3 . . 1 Catastrophic . | . . . . . Database Lockouts . | . . . . . Manual 4 | . 3 . . 1 Terminals 4 | . 3 . . 1 Fabricators . | . . . . . Repair Stations . | . . . . . Recycling Units . | . . . . . Scanalyzers . | . . . . . Garrison Access . | . . . . . Terminal Hacks 9 | . . . 9 . Record 8 | . . . 8 . Proto ID Catalog 1 | . . . 1 . Fabricator Hacks . | . . . . . Repair Station Hacks . | . . . . . Recycling Unit Hacks . | . . . . . Scanalyzer . | . . . . . Garrison Access Hacks . | . . . . . Unauthorized Hacks . | . . . . . Terminals . | . . . . . Fabricators . | . . . . . Repair Stations . | . . . . . Recycling Units . | . . . . . Scanalyzers . | . . . . . Garrison Access . | . . . . . Data Cores Recovered . | . . . . . Used . | . . . . . Hacking Detections 3 | . 2 . . 1 Full Trace Events . | . . . . . Feedback Events . | . . . . . Feedback Blocked . | . . . . . Robot Schematics Acquired . | . . . . . Robots Built . | . . . . . Authchips . | . . . . . Time . | . . . . . Total Robot Build Rating . | . . . . . Part Schematics Acquired . | . . . . . Parts Built . | . . . . . Authchips . | . . . . . Time . | . . . . . Total Part Build Rating . | . . . . . Parts Repaired . | . . . . . Time . | . . . . . Parts Recycled . | . . . . . Recycled Matter . | . . . . . Retrieved Matter . | . . . . . Retrieved Components . | . . . . . Parts Scanalyzed . | . . . . . Part Schematics Acquired . | . . . . . Parts Damaged . | . . . . . Bothacking | -11 -10 -10 -10 -8 ------------ Run | Yrd Mat Min Sub Mat Used RIF Installer . | . . . . . Robots Hacked . | . . . . . Non-combat . | . . . . . Combat . | . . . . . Robot Hacks Applied . | . . . . . Relay Couplers Released . | . . . . . Fabnet Peak Effective % . | . . . . . Robots Rewired . | . . . . . Allies Hacked . | . . . . . Hacks Repelled . | . . . . . Allies | -11 -10 -10 -10 -8 -------- Run | Yrd Mat Min Sub Mat Total Allies 6 | . . . 6 . Largest Group 2 | . . . 2 2 Highest-Rated Group 38 | . . . 38 38 Highest-Rated Ally 19 | . . . 19 19 Total Orders . | . . . . . Ally Attacks 32 | . . . 24 8 Total Damage 486 | . . . 358 128 Kills 10 | . . . 9 1 Allies Corrupted . | . . . . . Allies Melted . | . . . . . Intel | -11 -10 -10 -10 -8 ------- Run | Yrd Mat Min Sub Mat Active Infowar (turns) 1668 | 54 507 53 87 967 Optics 885 | . . . . 885 Sensors 362 | . . . . 362 Seismic 1151 | 54 507 53 87 450 Robot Analysis Total . | . . . . . Derelict Logs Recovered 1 | . . . 1 . Drone Launches . | . . . . . Drone Recoveries . | . . . . . Exploration | -11 -10 -10 -10 -8 ------------- Run | Yrd Mat Min Sub Mat Turns Passed 3916 | 121 507 53 2268 967 Spaces Moved 2071 | 53 268 13 1283 454 Core 18 | 14 . . . 4 Treads 1503 | . . . 1053 450 Legs 550 | 39 268 13 230 . Wheels . | . . . . . Hover . | . . . . . Flight . | . . . . . Fastest Speed 50 | 50 120 120 120 145 Average Speed 152 | 121 120 120 152 175 Slowest Speed 450 | 250 120 120 160 450 Overloaded Moves . | . . . . . Propulsion Burnouts . | . . . . . Robots Hopped . | . . . . . Potential Cave-ins . | . . . . . Cave-ins Triggered . | . . . . . Exploration Rate (%) 27 | 5 42 4 58 27 Regions Visited 4 Branch Regions 2 Pre-discovered Areas . | . . . . . Known Exits Taken . | . . . . . Unknown Exits Taken 4 | 1 1 1 1 . Scrap Searched 1 | . . . 1 . Spaces Dug . | . . . . . Terrain Destroyed 81 | . 29 . 36 16 Melee . | . . . . . Projectile 4 | . . . . 4 AOE 77 | . 29 . 36 12 Terrain Rammed . | . . . . . Walls Destroyed . | . . . . . Machines Disabled . | . . . . . Actions | -11 -10 -10 -10 -8 --------- Run | Yrd Mat Min Sub Mat Total 2576 | 78 430 50 1452 566 Wait 317 | . 136 38 95 48 Move 2067 | 52 267 12 1282 454 Hop . | . . . . . Pick Up 21 | 5 4 . 7 5 Fast Attach 17 | 6 . . 1 10 Attach 14 | 1 . . 4 9 Detach 1 | . . . . 1 Swap 6 | . 2 . 2 2 Drop 10 | . 1 . 8 1 Fire 118 | 14 20 . 52 32 Melee . | . . . . . Ram . | . . . . . Kick . | . . . . . Crush 5 | . . . 1 4 Escape Stasis . | . . . . . Rewire . | . . . . . Trap . | . . . . . Miscellaneous . | . . . . . Route ------- -11/Scrapyard -10/Materials (discovered 3 exits: [*Mat] / [*Min x2]) -10/Mines -10/Subcaves (discovered 3 exits: *Mat / [*Rec] / [*Scr]) -8/Materials (discovered 1 exit: [*Fac]) History --------- Turn | Location | Event 16 | -11/Scrapyard | Discovered new exit (range 16) 122 | -11/Scrapyard | Entered Materials 312 | -10/Materials | Build established: Mutant 314 | -10/Materials | Discovered new exit (range 13) 577 | -10/Materials | Discovered new exit (range 12) 615 | -10/Materials | Discovered new exit (range 3) 629 | -10/Materials | Entered Mines 678 | -10/Mines | Discovered new exit (range 3) 682 | -10/Mines | Entered Subcaves 683 | -10/Subcaves | Approached by a straggling Scientist 744 | -10/Subcaves | Visited triangular shrine 757 | -10/Subcaves | Found Prototype Device 770 | -10/Subcaves | Identified V3-11A's Pendant 783 | -10/Subcaves | A swath of the cavern ceiling suddenly collapsed 836 | -10/Subcaves | Scientist uncovered a shortcut to Scraptown 870 | -10/Subcaves | Approached by friendly Subdweller 1080 | -10/Subcaves | Befriended Subdweller 1271 | -10/Subcaves | A swath of the cavern ceiling suddenly collapsed 1455 | -10/Subcaves | Befriended Subdweller 1556 | -10/Subcaves | Shifting Twisted Machinery released Piercing Trap 1633 | -10/Subcaves | Visited 4L-MR0's lab 1792 | -10/Subcaves | Discovered new exit (range 10) 2150 | -10/Subcaves | Befriended Subdweller 2266 | -10/Subcaves | Shifting Twisted Machinery released Sub. Power Source 2269 | -10/Subcaves | Learned Materials security intel 2275 | -10/Subcaves | Shifting Twisted Machinery released Mak. Light Armor Plating 2321 | -10/Subcaves | Discovered new exit (range 9) 2338 | -10/Subcaves | Ambushed by Subdweller buried in earth 2340 | -10/Subcaves | Befriended Subdweller 2615 | -10/Subcaves | Befriended Subdweller 2950 | -10/Subcaves | Entered Materials 2950 | -8/Materials | Accompanied by 2 allies 2950 | -8/Materials | Evolved 4 slots: Propulsion x1, Utility x3 3360 | -8/Materials | Lost 8 parts (1p2n2u3w) 3556 | -8/Materials | Lost 3 parts (1n2w) 3861 | -8/Materials | Discovered new exit (range 20) 3879 | -8/Materials | Core integrity fell below 50% 3909 | -8/Materials | Core integrity fell below 20% 3917 | -8/Materials | Destroyed by G-47 Trooper with Particle Gun Last Messages --------------- 03880_ ALERT: Hostile activity reported, dispatching reinforcements to area. 03882_ Imp. Signal Interpreter destroyed. 03882_ Critical hit (Blast). 03882_ Acquired Lgt. Treads. 03884_ R-06 Scavenger collects Heat Sink. 03884_ Acquired 10 matter. 03884_ Penetrated by Slug. 03884_ Sml. Storage Unit destroyed. 03887_ R-06 Scavenger collects Imp. Ion Engine. 03901_ Critical hit (Burn: +37). 03906_ Lgt. Treads destroyed. 03906_ Hardlight Generator destroyed. 03908_ Slug penetrates G-47 Trooper. 03908_ G-47 Trooper knocked back. 03910_ Destroyed Lgt. Nuclear Core. 03911_ Critical hit (Burn: +37). 03913_ Hvy. Particle Cannon destroyed. 03914_ Slammed into G-47 Trooper. 03916_ Lgt. Treads destroyed. Map ----- +----------------------------------------------------+ | ????????????????????????????????? | | ????????????????????????????????? | | ????????????????????????????????? | | ????????????????????????????????? | | ????????????????????????????????? | | ????????????????????????????????? | | ????????????????????????????????? | | ????????????????????????????????? | | ??????????????????###???????????? | | ??????????????????# ???????????? | | ??????????????????#